bitfinex/quotes_ETHUSD_20240820
["timestamp","ask_amount","ask_price","bid_price","bid_amount"]
[1724161729257,7.55672,2646.7,2646.1,3.32338]
[1724161729571,3.77844,2646.6,2646.1,3.32338]
[1724161729778,3.77829,2646.7,2646.1,3.32338]
[1724161729965,3.7781,2646.9,2646.2,3.77891]
[1724161730130,3.7781,2646.9,2646.3,0.710229]
[1724161730759,3.77777,2647.1,2646.4,0.07556751]
[1724161731071,3.77712,2647.6,2646.9,2.425]
[1724161731257,3.77712,2647.6,2647.0,0.55]
[1724161731427,7.5547,2647.4,2647.0,0.55]
[1724161731629,7.55468,2647.4,2647.0,0.55]
[1724161731870,3.77731,2647.4,2647.0,0.55]
[1724161732679,7.55471,2647.4,2647.0,0.55]
[1724161732841,3.77713,2647.6,2647.0,0.55]
[1724161733174,3.77713,2647.6,2647.0,0.8475]
[1724161733348,7.55426,2647.6,2647.0,0.2975]
[1724161733532,7.55422,2647.6,2647.0,0.2975]
[1724161733869,3.77709,2647.6,2647.0,0.2975]
[1724161734079,3.77762,2647.2,2646.5,6.23978]
[1724161734230,3.77762,2647.2,2646.6,0.55]
[1724161735279,3.77747,2647.3,2646.5,2.4613]
[1724161735451,3.77747,2647.3,2646.1,6.7791]
[1724161735452,7.55651,2646.8,2646.1,2.4058]
[1724161735778,3.7783,2646.7,2646.1,2.4058]
[1724161736564,3.77825,2646.8,2646.1,2.4058]
[1724161736773,3.77824,2646.8,2646.1,2.4058]
[1724161736971,3.77787,2647.0,2646.1,6.18489]
[1724161737142,0.377747,2647.2,2646.1,6.18489]
[1724161737143,3.77809,2646.9,2646.2,0.996412]
[1724161737343,3.77783,2647.1,2646.2,4.775382]
[1724161737572,3.77786,2647.0,2646.2,4.775382]
[1724161737749,3.77786,2647.0,2646.3,0.7181182]
[1724161737949,4.155407,2647.2,2646.4,4.32871]
[1724161738182,3.77784,2647.1,2646.4,0.55]
[1724161738341,3.77787,2647.0,2646.4,0.55]
[1724161739065,3.77824,2646.8,2646.1,2.4058]
[1724161739233,3.77839,2646.7,2646.1,3.0243]
[1724161739433,3.77824,2646.8,2646.1,3.0243]
[1724161739641,3.77792,2647.0,2646.1,3.0243]
[1724161739956,3.77827,2646.8,2646.1,3.0243]
[1724161740357,3.7776,2647.2,2646.3,3.77883]
[1724161740587,7.708,2647.3,2646.5,3.77848]
[1724161740883,7.708,2647.3,2646.2,0.680349]
[1724161740884,3.77796,2647.0,2646.2,0.680349]
[1724161741088,3.77841,2646.7,2646.1,2.4058]
[1724161741251,3.77757,2647.2,2646.1,3.024315]
[1724161741440,3.7778,2647.1,2646.3,3.77875]
[1724161741954,3.77775,2647.1,2646.3,3.77875]
[1724161742284,7.55619,2646.9,2646.1,6.18486]
[1724161742459,3.77808,2646.9,2646.2,0.55]
[1724161742862,3.77805,2646.9,2646.2,0.55]
[1724161743056,3.77805,2646.9,2646.2,5.380361]
[1724161743261,7.55562,2647.1,2646.3,3.77885]
[1724161743468,7.55562,2647.1,2646.2,1.601391]
[1724161743469,3.77801,2646.9,2646.2,1.601391]
[1724161743872,3.77814,2646.8,2646.2,1.601391]
[1724161744401,3.77781,2647.1,2646.2,5.380381]
[1724161744555,4.926391,2647.1,2646.3,3.77885]
[1724161744892,1.148581,2647.1,2646.2,1.601391]
[1724161745102,1.148581,2647.1,2646.1,2.4058]
[1724161745250,4.926391,2647.1,2646.1,2.4058]
[1724161745690,3.77807,2646.9,2646.1,6.18481]
[1724161745843,11.48552,2647.3,2646.3,3.77876]
[1724161746191,3.7776,2647.2,2646.4,4.761506]
[1724161746392,7.708,2647.7,2646.5,0.0755632]
[1724161746596,7.708,2647.7,2646.4,0.982876]
[1724161746597,7.708,2647.7,2646.8,3.77804]
[1724161746884,7.708,2647.7,2646.9,0.55]
[1724161746885,3.77735,2647.4,2646.9,0.55]
[1724161747499,3.77735,2647.4,2646.7,4.32826]
[1724161747660,3.77712,2647.6,2646.8,4.83382]
[1724161747866,3.77722,2647.5,2646.9,0.55]
[1724161748072,3.77735,2647.4,2646.9,0.55]
[1724161748256,3.77722,2647.5,2646.9,0.55]
[1724161748799,3.77755,2647.3,2646.8,1.05568]
[1724161749020,7.708,2647.7,2646.6,2.4502]
[1724161749021,3.77761,2647.2,2646.6,2.4502]
[1724161749294,3.77781,2647.1,2646.6,2.4502]
[1724161749848,3.77788,2647.0,2646.6,2.4502]
[1724161750048,3.77761,2647.2,2646.6,2.4502]
[1724161750360,3.77774,2647.1,2646.6,3.1163786]
[1724161750583,3.77772,2647.1,2646.6,3.1163786]
[1724161750946,3.77761,2647.2,2646.6,3.1163786]
[1724161751791,7.55476,2647.4,2646.6,6.8947986]
[1724161751990,3.77736,2647.4,2646.6,6.8947986]
[1724161752157,3.77758,2647.2,2646.7,1.06733486]
[1724161752359,3.77778,2647.1,2646.6,3.1163786]
[1724161752563,3.77786,2647.0,2646.6,3.1163786]
[1724161752750,3.77786,2647.0,2646.6,2.4502]
[1724161752947,7.55581,2647.0,2646.6,2.4502]
[1724161753154,3.77801,2646.9,2646.6,2.4502]
[1724161753470,3.77849,2646.6,2646.2,2.3989]
[1724161753669,3.77831,2646.7,2646.2,2.3989]
[1724161754166,3.778,2646.9,2646.2,2.3989]
[1724161754381,3.77753,2647.3,2646.5,3.77856]
[1724161754789,3.77753,2647.3,2646.5,3.77845]
[1724161754968,3.77753,2647.3,2646.6,4.156265]
[1724161754969,7.55507,2647.3,2646.6,4.156265]
[1724161755169,3.77753,2647.3,2646.6,4.156265]
[1724161755373,3.77723,2647.5,2646.8,6.03086]
[1724161755585,7.708,2647.8,2647.0,3.77783]
[1724161755791,3.77624,2648.2,2647.0,3.77782]
[1724161755992,3.77624,2648.2,2647.3,3.77734]
[1724161755993,3.7763,2648.1,2647.3,3.77734]
[1724161756161,3.7763,2648.1,2647.1,7.170322]
[1724161756162,3.77662,2647.9,2647.1,7.170292]
[1724161756599,7.55328,2647.9,2647.2,3.77756]
[1724161756809,7.5533,2647.9,2647.1,2.842682]
[1724161756959,3.7768,2647.8,2647.1,6.620382]
[1724161757157,3.7768,2647.8,2647.2,1.0398112]
[1724161757360,3.77704,2647.6,2647.2,1.0398112]
[1724161757673,3.77704,2647.6,2647.1,2.842682]
[1724161758408,7.55415,2647.6,2647.1,2.648282]
[1724161758557,3.77704,2647.6,2647.1,2.2302]
[1724161758903,3.77704,2647.6,2646.6,4.156195]
[1724161758904,7.55449,2647.5,2646.6,4.156155]
[1724161759105,3.77723,2647.5,2646.6,4.156155]
[1724161759324,3.77723,2647.5,2646.7,0.3063155]
[1724161759835,3.77689,2647.7,2646.8,23.31801]
[1724161759970,3.77636,2648.1,2647.1,3.77762]
[1724161760172,7.708,2648.3,2647.5,3.77713]
[1724161760173,3.77607,2648.3,2647.5,3.77713]
[1724161760379,3.77607,2648.3,2647.6,0.07553173]
[1724161760581,0.4153657,2648.2,2647.6,0.07553173]
[1724161760822,4.1916257,2648.2,2647.5,19.54]
[1724161760987,0.4153657,2648.2,2647.5,23.31703]
[1724161761183,3.77602,2648.3,2647.5,23.31703]
[1724161761427,3.77602,2648.3,2647.6,23.31698]
[1724161761587,3.77602,2648.3,2647.6,25.59748]
[1724161762221,7.55157,2648.5,2647.7,3.77685]
[1724161762373,3.77548,2648.7,2647.9,3.77645]
[1724161763048,4.36728109,2648.9,2647.7,5.95877]
[1724161763049,0.59205109,2648.9,2647.7,5.95877]
[1724161763219,3.7758,2648.5,2647.8,26.81]
[1724161763380,4.15338,2648.5,2647.8,26.81]
[1724161763885,7.92924,2648.5,2647.8,26.81]
[1724161764088,4.15337,2648.5,2647.8,26.81]
[1724161764410,0.37758,2648.5,2647.8,26.81]
[1724161764727,3.77676,2647.8,2647.2,34.3484]
[1724161765020,2.4383,2648.3,2647.2,19.54]
[1724161765021,3.77715,2647.5,2647.2,19.54]
[1724161765224,3.77709,2647.6,2647.2,19.54]
[1724161765386,3.77752,2647.3,2646.8,19.54]
[1724161765904,3.77773,2647.1,2646.7,26.81]
[1724161766107,3.77773,2647.1,2646.6,19.917845]
[1724161766302,3.77773,2647.1,2646.6,19.54]
[1724161766506,7.55555,2647.1,2646.6,19.54]
[1724161766856,3.77773,2647.1,2646.6,19.54]
[1724161767057,7.55501,2647.3,2646.6,19.54]
[1724161767211,3.77746,2647.3,2646.6,19.54]
[1724161767552,4.2700569,2647.3,2646.6,19.54]
[1724161767764,3.77773,2647.1,2646.6,19.54]
[1724161768927,3.77795,2647.0,2646.6,19.54]
[1724161769421,3.77773,2647.1,2646.6,19.54]
[1724161771085,7.55554,2647.1,2646.6,19.54]
[1724161771235,3.778,2646.9,2646.6,19.54]
[1724161771442,6.12913,2647.0,2646.1,7.27]
[1724161771686,3.77865,2646.5,2646.1,7.27]
[1724161772864,15.26378,2646.7,2646.1,7.27]
[1724161773175,16.412318,2646.7,2646.1,7.27]
[1724161773372,4.926918,2646.7,2646.1,7.27]
[1724161773560,8.51181369,2647.1,2646.1,7.27]
[1724161773561,12.28962369,2647.1,2646.2,3.77898]
[1724161773761,12.28962369,2647.1,2646.2,3.77891]
[1724161773963,16.06745369,2647.1,2646.4,6.18969]
[1724161774171,1.60674537,2647.0,2646.4,6.18969]
[1724161774389,1.60674537,2647.0,2646.4,2.411]
[1724161774706,5.38471537,2647.0,2646.4,2.411]
[1724161775619,1.60674537,2647.0,2646.4,2.411]
[1724161776491,1.60674537,2647.0,2646.5,3.77856]
[1724161776670,11.48422,2647.5,2646.5,23.31847]
[1724161776876,11.48422,2647.5,2646.7,3.7782]
[1724161777111,2.3722,2647.8,2646.8,19.61555219]
[1724161777112,3.77696,2647.7,2646.8,19.61555219]
[1724161777319,3.77722,2647.5,2646.9,0.07555218]
[1724161777459,2.3722,2647.8,2646.9,0.07555218]
[1724161777460,3.77672,2647.8,2647.0,3.77783]
[1724161777659,7.55357,2647.8,2647.1,19.54]
[1724161777864,3.77687,2647.7,2647.1,19.54]
[1724161778211,3.7756,2648.6,2647.1,27.09532]
[1724161778212,3.77652,2648.0,2647.1,27.09532]
[1724161778416,3.77668,2647.9,2647.1,23.31762]
[1724161778566,3.77672,2647.8,2647.2,2.8297202]
[1724161780514,7.55353,2647.8,2647.2,2.8297202]
[1724161780807,3.77672,2647.8,2647.2,2.8297202]
[1724161781005,3.77672,2647.8,2647.1,19.54]
[1724161781310,3.77672,2647.8,2647.1,23.3177]
[1724161782312,3.77672,2647.8,2647.1,19.54]
[1724161782488,3.77715,2647.5,2647.1,19.54]
[1724161782673,3.77647,2648.0,2647.1,19.54]
[1724161782674,3.77709,2647.6,2647.1,19.54]
[1724161783225,7.55417,2647.6,2647.1,19.54]
[1724161783371,3.77708,2647.6,2647.1,19.54]
[1724161783787,7.55418,2647.6,2647.1,19.54]
[1724161784119,3.77715,2647.5,2647.1,19.54]
[1724161784976,3.77752,2647.3,2647.1,19.54]
[1724161785757,3.77757,2647.2,2647.1,19.54]
[1724161786270,3.42757,2647.2,2646.6,21.8658]
[1724161786565,3.42757,2647.2,2646.6,25.15723]
[1724161786773,3.77738,2647.4,2646.6,25.15723]
[1724161786774,7.55478,2647.4,2646.6,28.93552]
[1724161786973,3.77738,2647.4,2646.7,3.77827]
[1724161787273,3.77738,2647.4,2646.6,28.93552]
[1724161787470,3.77743,2647.3,2646.7,3.620552]
[1724161788180,11.48427,2647.5,2646.7,3.620552]
[1724161788327,3.77675,2647.8,2647.0,3.77779]
[1724161788531,3.77664,2647.9,2647.2,2.3401]
[1724161788847,3.77694,2647.7,2647.3,2.565772]
[1724161789031,3.77694,2647.7,2647.3,22.105772]
[1724161789670,3.77674,2647.8,2647.3,22.105772]
[1724161789874,3.77689,2647.7,2647.3,19.54]
[1724161790228,3.77722,2647.5,2647.3,19.54]
[1724161790828,3.77682,2647.8,2647.3,19.54]
[1724161791072,3.77729,2647.4,2647.3,19.54]
[1724161791229,3.77729,2647.4,2646.5,6.06968]
[1724161791230,3.77767,2647.2,2646.5,9.5612]
[1724161791430,3.77767,2647.2,2646.6,22.45012]
[1724161791725,7.55533,2647.2,2646.6,22.45012]
[1724161791930,7.707,2647.6,2646.6,19.54]
[1724161792170,3.77823,2646.8,2646.6,19.54]
[1724161792568,3.77803,2646.9,2646.6,19.54]
[1724161792742,3.77815,2646.8,2646.6,19.54]
[1724161793582,3.77803,2646.9,2646.6,19.54]
[1724161793767,3.77824,2646.8,2646.6,19.54]
[1724161794274,3.77786,2647.0,2646.6,19.54]
[1724161794432,11.48465,2647.2,2646.6,22.221]
[1724161795030,3.7781,2646.9,2646.6,19.54]
[1724161795230,3.7781,2646.9,2646.3,31.91]
[1724161795483,3.77774,2647.1,2646.4,3.77868]
[1724161795834,11.48468,2647.2,2646.5,3.77854]
[1724161796147,3.77736,2647.4,2646.6,3.77842]
[1724161796364,3.77736,2647.4,2646.7,0.377842]
[1724161796868,3.77736,2647.4,2646.3,31.91]
[1724161797177,3.77745,2647.3,2646.6,3.77834]
[1724161797473,3.77736,2647.4,2646.7,3.77827]
[1724161797875,3.77736,2647.4,2646.6,3.77834]
[1724161798180,3.77758,2647.2,2646.5,3.77848]
[1724161798345,3.77786,2647.0,2646.6,0.755706]
[1724161798545,3.77786,2647.0,2646.3,35.68884]
[1724161798756,3.77786,2647.0,2646.3,31.91]
[1724161799071,3.77816,2646.8,2646.3,31.91]
[1724161799392,3.77801,2646.9,2646.3,31.91]
[1724161799535,3.77829,2646.7,2646.3,31.91]
[1724161799737,3.77801,2646.9,2646.3,35.64531554]
[1724161799930,11.48458,2647.2,2646.3,35.64531554]
[1724161799931,3.77816,2646.8,2646.3,35.64531554]
[1724161800389,3.77786,2647.0,2646.3,39.42409554]
[1724161800540,7.55582,2647.0,2646.3,39.42409554]
[1724161800758,3.77804,2646.9,2646.3,35.64531554]
[1724161800957,3.77804,2646.9,2646.4,3.67050957]
[1724161801513,3.77804,2646.9,2646.4,23.21050957]
[1724161802503,7.55551,2647.1,2646.4,23.21050957]
[1724161802712,3.0,2647.4,2646.5,2.255]
[1724161802874,7.707,2648.0,2646.9,2.255]
[1724161803202,7.5536,2647.8,2646.9,32.843]
[1724161803508,3.77695,2647.7,2647.0,3.77785]
[1724161803872,3.77703,2647.6,2646.9,29.065]
[1724161804079,7.55413,2647.6,2647.0,1.41426458]
[1724161804390,7.707,2648.0,2647.0,1.41426458]
[1724161804630,3.77722,2647.5,2646.9,29.065]
[1724161804945,3.77751,2647.3,2646.9,26.81]
[1724161805240,3.77674,2647.8,2646.9,3.77799]
[1724161805241,3.7768,2647.8,2646.9,3.77799]
[1724161805393,3.0,2647.7,2647.0,0.377799]
[1724161805594,6.77687,2647.7,2647.0,4.155649]
[1724161805823,7.707,2648.0,2647.2,3.77755]
[1724161805824,11.48346,2648.0,2647.2,3.77755]
[1724161806025,3.77672,2647.8,2647.1,29.0787]
[1724161806207,11.4829,2648.4,2647.1,29.0787]
[1724161806208,3.77695,2647.7,2647.1,29.0787]
[1724161806387,7.55389,2647.7,2647.2,2.9456499]
[1724161806587,3.77703,2647.6,2647.2,2.9456499]
[1724161807030,3.77694,2647.7,2647.2,2.9456499]
[1724161807246,3.77634,2648.1,2647.2,2.9456499]
[1724161807403,3.77608,2648.3,2647.3,21.30132525]
[1724161807605,3.77616,2648.2,2647.5,3.77713]
[1724161807804,3.77616,2648.2,2647.6,0.075531]
[1724161808005,3.77616,2648.2,2647.6,0.7019371]
[1724161808348,3.77608,2648.3,2647.6,0.7019371]
[1724161808496,3.77608,2648.3,2647.6,0.6264061]
[1724161808698,3.77608,2648.3,2647.4,2.4114]
[1724161808699,3.7763,2648.1,2647.4,2.4114]
[1724161809543,3.7763,2648.1,2647.4,6.18868]
[1724161810099,3.7763,2648.1,2647.4,2.4114]
[1724161810300,7.55269,2648.1,2647.4,2.4114]
[1724161810539,10.707,2648.0,2647.1,9.6927]
[1724161810744,3.77704,2647.6,2647.1,9.6927]
[1724161810919,3.77772,2647.1,2646.6,2.4227]
[1724161811616,7.55556,2647.1,2646.5,7.27]
[1724161811956,3.77804,2646.9,2646.5,7.27]
[1724161812114,3.77825,2646.8,2646.5,7.27]
[1724161815223,3.0,2646.9,2646.5,7.27]
[1724161815796,3.77814,2646.8,2646.5,7.27]
[1724161815958,3.77843,2646.6,2646.5,7.27]
[1724161816165,3.77853,2646.6,2645.9,2.3229]
[1724161816451,3.77923,2646.1,2645.7,19.54]
[1724161816659,3.77893,2646.3,2645.7,19.54]
[1724161816839,7.55789,2646.3,2645.7,19.54]
[1724161817043,3.77893,2646.3,2645.7,19.54]
[1724161817246,3.77915,2646.1,2645.7,19.54]
[1724161817963,13.1254,2646.5,2645.5,7.27]
[1724161818119,3.77939,2646.0,2645.5,7.27]
[1724161818463,7.55877,2646.0,2645.4,2.4218]
[1724161818661,3.77943,2645.9,2645.4,2.4218]
[1724161819173,3.77957,2645.8,2645.4,2.4218]
[1724161819464,3.77957,2645.8,2645.4,3.39098]
[1724161819708,3.77987,2645.6,2645.2,7.27]
[1724161820135,3.78002,2645.5,2645.2,7.27]
[1724161820348,3.73002,2645.5,2645.2,7.27]
[1724161820656,7.56049,2645.4,2645.0,19.54]
[1724161820998,3.78022,2645.4,2644.8,19.54]
[1724161821198,3.78052,2645.2,2644.8,19.54]
[1724161821541,3.78058,2645.1,2644.8,19.54]
[1724161821743,3.73052,2645.2,2644.8,19.54]
[1724161821983,3.7802,2645.4,2644.8,22.221]
[1724161822166,3.7803,2645.3,2644.8,22.221]
[1724161822369,3.77993,2645.6,2644.8,22.221]
[1724161822572,3.59268578,2645.7,2644.9,3.78074]
[1724161822752,3.59268578,2645.7,2644.8,26.00197]
[1724161822753,3.77996,2645.6,2645.0,5.399171]
[1724161822959,7.55992,2645.6,2645.0,5.399171]
[1724161823140,3.78001,2645.5,2645.0,5.399171]
[1724161823355,3.78018,2645.4,2644.8,22.221]
[1724161823559,3.77996,2645.6,2644.8,22.221]
[1724161823796,3.78017,2645.4,2644.8,22.221]
[1724161824108,3.78044,2645.2,2644.8,19.54]
[1724161824290,3.7808,2645.0,2644.8,19.54]
[1724161824605,3.7806,2645.1,2644.8,19.54]
[1724161824806,7.5613,2645.1,2644.8,19.54]
[1724161825010,3.78072,2645.0,2644.5,19.54]
[1724161825304,3.78072,2645.0,2644.5,22.46488]
[1724161825504,7.56099,2645.2,2644.5,22.46488]
[1724161825711,3.78045,2645.2,2644.5,22.46488]
[1724161825894,3.7808,2645.0,2644.5,22.46488]
[1724161826476,3.1808,2645.0,2644.5,22.46488]
[1724161826680,3.78045,2645.2,2644.5,22.46488]
[1724161827021,3.78058,2645.1,2644.5,22.46488]
[1724161827433,6.21851,2645.6,2644.4,9.7088]
[1724161827580,3.78103,2644.8,2644.4,7.27]
[1724161827778,3.78103,2644.8,2644.3,19.54]
[1724161828113,7.56279,2644.6,2644.1,26.81]
[1724161828414,3.78137,2644.6,2644.1,29.72632]
[1724161828918,3.78106,2644.8,2644.1,29.72632]
[1724161829128,6.08669,2645.0,2644.2,3.85746913]
[1724161829129,3.78079,2645.0,2644.2,3.85746913]
[1724161829425,3.0,2645.1,2644.3,7.56323]
[1724161829573,3.78058,2645.1,2644.4,0.756323]
[1724161829775,3.78044,2645.2,2644.4,3.78149]
[1724161829974,10.56047,2645.4,2644.5,3.85702026]
[1724161830218,10.56047,2645.4,2644.7,3.78105]
[1724161830219,3.0,2645.4,2644.7,3.78105]
[1724161830378,3.0,2645.5,2644.7,3.78105]
[1724161830577,3.77993,2645.6,2644.9,3.78073]
[1724161830887,3.78,2645.5,2645.0,0.38563415]
[1724161831089,3.78015,2645.4,2644.7,19.54]
[1724161831303,3.78061,2645.1,2644.7,19.54]
[1724161831502,3.78089,2644.9,2644.7,19.54]
[1724161831919,0.0425055,2644.8,2644.7,19.54]
[1724161832093,0.0425055,2644.8,2644.4,7.27]
[1724161832273,0.0425055,2644.8,2644.4,11.00531554]
[1724161833085,3.78066,2645.1,2644.4,11.00531554]
[1724161833296,0.0424099,2645.0,2644.4,11.00531554]
[1724161833622,3.78107,2644.8,2644.4,11.00531554]
[1724161833978,0.04221505,2644.7,2644.4,11.00531554]
[1724161834218,3.78058,2645.1,2644.5,0.75418957]
[1724161834517,3.82316906,2645.0,2644.5,0.75418957]
[1724161834920,7.60401906,2645.0,2644.5,0.75418957]
[1724161835120,7.60401906,2645.0,2644.4,11.00531554]
[1724161835121,3.78089,2644.9,2644.4,11.00531554]
[1724161835421,3.78089,2644.9,2644.3,21.974]
[1724161835422,3.78143,2644.5,2644.3,19.54]
[1724161835728,0.04177067,2644.4,2644.3,19.54]
[1724161836817,0.04177067,2644.4,2643.9,26.81]
[1724161836993,0.04177067,2644.4,2643.7,12.37]
[1724161836994,0.04177067,2644.4,2643.8,23.32242]
[1724161837327,0.04167294,2644.3,2643.9,7.351452]
[1724161837519,3.78135,2644.6,2643.9,3.569242]
[1724161837823,0.04158141,2644.2,2643.9,3.569242]
[1724161838139,7.56223,2644.8,2644.0,6.4712892]
[1724161838428,3.0,2644.9,2644.3,3.78163]
[1724161838585,0.04263598,2644.7,2644.3,3.78163]
[1724161838930,3.781,2644.9,2644.2,2.3091]
[1724161839227,3.78103,2644.8,2644.3,0.609097]
[1724161839432,3.82209176,2644.8,2644.3,0.609097]
[1724161839926,3.82209176,2644.8,2644.0,2.6891592]
[1724161839927,3.78151,2644.5,2644.0,2.6891592]
[1724161840108,7.56306,2644.5,2644.0,2.6891592]
[1724161840312,0.04054366,2644.4,2644.0,2.6891592]
[1724161840681,6.78123,2644.7,2644.0,2.6891592]
[1724161840884,3.82235374,2644.6,2644.0,2.6891592]
[1724161841228,3.82235374,2644.6,2644.1,1.14742391]
[1724161841429,0.04103374,2644.6,2644.1,4.92941391]
[1724161841737,0.04103374,2644.6,2644.1,4.92934391]
[1724161842110,3.78102,2644.8,2644.1,4.92934391]
[1724161842311,0.04080719,2644.5,2644.1,4.92934391]
[1724161842543,3.78102,2644.8,2644.2,0.76185031]
[1724161842857,0.04067588,2644.4,2644.2,0.76185031]
[1724161843146,0.04062418,2644.3,2644.2,0.76185031]
[1724161843513,3.78102,2644.8,2644.2,0.76185031]
[1724161844127,3.78102,2644.8,2644.1,24.46942391]
[1724161844128,0.04088487,2644.7,2644.1,19.54]
[1724161844322,3.78151,2644.5,2644.1,19.54]
[1724161844567,3.78186,2644.2,2644.1,19.54]
[1724161844713,3.78174,2644.3,2644.1,19.54]
[1724161844912,0.04016861,2644.2,2644.1,19.54]
[1724161845440,3.78174,2644.3,2644.1,19.54]
[1724161845640,0.04008543,2644.2,2644.1,19.54]
[1724161845958,3.78152,2644.5,2644.1,19.54]
[1724161846157,0.04010564,2644.2,2644.1,19.54]
[1724161846313,3.78152,2644.5,2644.1,19.54]
[1724161846508,0.04012983,2644.2,2644.1,19.54]
[1724161846736,3.78152,2644.5,2644.1,19.54]
[1724161846910,0.04006858,2644.2,2644.1,28.26889]
[1724161847115,3.78094,2644.9,2644.1,28.26889]
[1724161847461,0.04006681,2644.2,2644.1,28.26889]
[1724161847630,3.78094,2644.9,2644.2,3.78184]
[1724161847828,3.78094,2644.9,2644.3,3.205073]
[1724161848035,3.82023045,2644.8,2644.3,3.205073]
[1724161848246,3.78115,2644.7,2644.3,3.205073]
[1724161848452,7.56239,2644.7,2644.3,3.205073]
[1724161848658,0.03941371,2644.6,2644.3,3.205073]
[1724161848826,3.78144,2644.5,2644.1,4.947]
[1724161849164,0.03929042,2644.4,2644.1,2.681]
[1724161849568,0.03929042,2644.4,2644.2,0.9951]
[1724161850068,3.78144,2644.5,2644.1,2.681]
[1724161850220,0.03921886,2644.3,2644.0,7.27]
[1724161850563,0.03912025,2644.2,2644.0,7.27]
[1724161850766,3.78172,2644.3,2644.0,7.27]
[1724161850965,0.03901651,2644.1,2644.0,7.27]
[1724161851176,3.78172,2644.3,2644.0,7.27]
[1724161851325,0.03904557,2644.1,2644.0,7.27]
[1724161851524,2.4794,2644.6,2644.0,7.27]
[1724161851723,0.03904557,2644.1,2644.0,10.329235]
[1724161852033,3.78157,2644.4,2644.0,10.329235]
[1724161852552,0.03912905,2644.3,2644.0,10.329235]
[1724161853475,0.03912905,2644.3,2644.0,7.27]
[1724161853962,3.7816,2644.4,2644.0,7.27]
[1724161854118,0.03903665,2644.2,2644.0,7.27]
[1724161854321,3.7816,2644.4,2644.0,7.27]
[1724161854572,0.03930998,2644.3,2643.3,7.27]
[1724161854771,3.78251,2643.8,2643.3,7.27]
[1724161855068,3.78251,2643.8,2643.2,19.54]
[1724161855274,0.03805376,2643.7,2643.2,19.54]
[1724161856156,0.03805376,2643.7,2643.2,23.32325]
[1724161856969,0.03805376,2643.7,2643.2,19.54]
[1724161857179,0.03805376,2643.7,2643.2,27.05856554]
[1724161857741,0.03805376,2643.7,2643.2,30.84177554]
[1724161858126,3.78229,2643.9,2643.2,30.84177554]
[1724161858328,0.03804571,2643.8,2643.2,27.05852554]
[1724161858957,0.03804571,2643.8,2643.2,30.84173554]
[1724161859275,0.03804571,2643.8,2643.3,7.10000355]
[1724161859572,3.7823,2643.9,2643.3,3.31686355]
[1724161859766,0.03803215,2643.7,2643.3,3.31686355]
[1724161859924,3.7823,2643.9,2643.3,3.31686355]
[1724161860126,0.03814792,2643.8,2643.3,3.31686355]
[1724161860328,0.03814792,2643.8,2643.4,3.04232936]
[1724161860575,0.59300658,2644.3,2643.8,3.7823]
[1724161860738,0.03808055,2643.7,2643.5,30.59275]
[1724161860978,3.78202,2644.1,2643.5,30.59275]
[1724161861297,3.78202,2644.1,2643.5,34.37554]
[1724161861500,0.03530589,2644.0,2643.6,3.73531554]
[1724161861668,0.03530589,2644.0,2643.6,7.51802554]
[1724161862014,0.03523233,2643.9,2643.6,3.73531554]
[1724161862595,0.03497401,2643.8,2643.6,7.51801554]
[1724161862780,3.78173,2644.3,2643.6,7.51801554]
[1724161863100,7.56356,2644.3,2643.7,0.62818021]
[1724161863398,3.78173,2644.3,2643.7,0.62818021]
[1724161863571,3.7819,2644.2,2643.7,0.62818021]
[1724161863773,7.56357,2644.3,2643.7,0.62818021]
[1724161864098,3.78173,2644.3,2643.7,0.62818021]
[1724161864285,8.791,2644.4,2643.8,4.59697958]
[1724161864484,3.78172,2644.3,2643.8,0.81461958]
[1724161865227,3.78217,2644.0,2643.6,19.54]
[1724161865582,3.78244,2643.8,2643.6,19.54]
[1724161865779,9.95262,2644.1,2643.3,3.78313]
[1724161865979,3.78215,2644.0,2643.3,3.78313]
[1724161866296,0.03522721,2643.9,2643.4,2.332313]
[1724161866929,0.03522721,2643.9,2643.5,3.78274]
[1724161867123,0.03522721,2643.9,2643.6,3.78271]
[1724161867332,0.03515985,2643.8,2643.6,3.78271]
[1724161867538,0.03515985,2643.8,2643.6,0.9897763]
[1724161867720,0.03489886,2643.7,2643.6,0.9897763]
[1724161867920,3.0,2644.1,2643.6,0.9897763]
[1724161868123,3.0,2644.1,2643.6,4.7724863]
[1724161868469,0.03517356,2644.0,2643.6,0.9897763]
[1724161868638,0.03517356,2644.0,2643.6,4.7724863]
[1724161869347,0.03517356,2644.0,2643.7,0.85552263]
[1724161869650,3.78173,2644.3,2643.7,0.85552263]
[1724161869798,0.03374958,2643.9,2643.7,0.85552263]
[1724161870001,3.78173,2644.3,2643.7,0.85552263]
[1724161870204,0.03370643,2643.8,2643.7,0.85552263]
[1724161870516,0.03376614,2643.8,2643.7,0.85552263]
[1724161870720,2.3425,2644.9,2644.4,3.78152]
[1724161871026,3.96991777,2645.6,2644.8,3.78099]
[1724161871027,2.3425,2645.6,2644.8,3.78099]
[1724161871453,2.3425,2645.6,2644.9,3.78083]
[1724161871602,2.3425,2645.6,2644.6,3.78119]
[1724161871802,2.3425,2645.6,2644.8,3.78097]
[1724161871803,0.81335,2645.5,2644.8,3.78097]
[1724161872016,4.59344,2645.5,2644.8,3.78097]
[1724161872231,4.59337,2645.5,2644.8,3.78097]